fUSD/lending_fUSD_20250828
["ID","MTS","AMOUNT","RATE_DAILY","PERIOD"]
[381770635,1756339852065,-400.0,0.0001782,2]
[381770636,1756339852075,-400.0,0.0001782,2]
[381770637,1756339852084,-400.0,0.0001782,2]
[381770638,1756339852093,-400.0,0.0001782,2]
[381770639,1756339852103,-400.0,0.0001782,2]
[381770640,1756339852112,-400.0,0.0001782,2]
[381770641,1756339852122,-500.0,0.0001782,2]
[381770642,1756339852131,-640.12,0.0001782,2]
[381770643,1756339852140,-400.0,0.0001782,2]
[381770644,1756339852150,-400.0,0.0001782,2]
[381770645,1756339852160,-405.5,0.0001782,2]
[381770646,1756339852170,-400.0,0.0001782,2]
[381770647,1756339852179,-400.0,0.0001782,2]
[381770648,1756339852188,-400.0,0.0001782,2]
[381770649,1756339852198,-400.0,0.0001782,2]
[381770650,1756339852207,-400.0,0.0001782,2]
[381770651,1756339852216,-400.0,0.0001782,2]
[381770652,1756339852225,-400.0,0.0001782,2]
[381770653,1756339852234,-400.0,0.0001782,2]
[381770654,1756339852244,-400.0,0.0001782,2]
[381770655,1756339852254,-400.0,0.0001782,2]
[381770656,1756339852263,-400.0,0.0001782,2]
[381770657,1756339852273,-400.0,0.0001782,2]
[381770658,1756339852282,-438.53,0.0001782,2]
[381770659,1756339852291,-400.0,0.0001782,2]
[381770660,1756339852300,-400.0,0.0001782,2]
[381770661,1756339852311,-400.0,0.0001782,2]
[381770662,1756339852320,-400.0,0.0001782,2]
[381770663,1756339852329,-400.0,0.0001782,2]
[381770664,1756339852339,-498.15,0.0001782,2]
[381770665,1756339852348,-532.4,0.0001782,2]
[381770666,1756339852357,-441.42,0.0001782,2]
[381770667,1756339852367,-400.0,0.0001782,2]
[381770668,1756339852376,-400.0,0.0001782,2]
[381770669,1756339852385,-402.48,0.0001782,2]
[381770670,1756339852395,-400.0,0.0001782,2]
[381770671,1756339852404,-400.0,0.0001782,2]
[381770672,1756339852413,-400.0,0.0001782,2]
[381770673,1756339852422,-400.0,0.0001782,2]
[381770674,1756339852431,-609.59,0.0001782,2]
[381770675,1756339852441,-400.0,0.0001782,2]
[381770676,1756339852450,-540.61,0.0001782,2]
[381770677,1756339852459,-400.0,0.0001782,2]
[381770678,1756339852468,-400.0,0.0001782,2]
[381770679,1756339852477,-403.42,0.0001782,2]
[381770680,1756339852486,-475.26,0.0001782,2]
[381770681,1756339852496,-483.78,0.0001782,2]
[381770682,1756339852505,-449.5,0.0001782,2]
[381770683,1756339852514,-400.0,0.0001782,2]
[381770684,1756339852523,-400.0,0.0001782,2]
[381770685,1756339852533,-400.0,0.0001782,2]
[381770686,1756339852542,-400.0,0.0001782,2]
[381770687,1756339852551,-449.91,0.0001782,2]
[381770688,1756339852560,-400.0,0.0001782,2]
[381770689,1756339852569,-400.0,0.0001782,2]
[381770690,1756339852578,-400.0,0.0001782,2]
[381770691,1756339852588,-400.0,0.0001782,2]
[381770692,1756339852598,-400.0,0.0001782,2]
[381770693,1756339852607,-400.0,0.0001782,2]
[381770694,1756339852616,-400.0,0.0001782,2]
[381770695,1756339852625,-480.9,0.0001782,2]
[381770696,1756339852634,-400.0,0.0001782,2]
[381770697,1756339852643,-400.0,0.0001782,2]
[381770698,1756339852653,-400.0,0.0001782,2]
[381770699,1756339852662,-708.57,0.0001782,2]
[381770700,1756339852671,-1779.4,0.0001782,2]
[381770701,1756339852680,-400.0,0.0001782,2]
[381770702,1756339852689,-400.0,0.0001782,2]
[381770703,1756339852698,-400.0,0.0001782,2]
[381770704,1756339852707,-400.0,0.0001782,2]
[381770705,1756339852716,-400.0,0.0001782,2]
[381770706,1756339852725,-574.84,0.0001782,2]
[381770707,1756339852734,-400.0,0.0001782,2]
[381770708,1756339852743,-400.0,0.0001782,2]
[381770709,1756339852752,-400.0,0.0001782,2]
[381770710,1756339852762,-772.33,0.0001782,2]
[381770711,1756339852771,-470.81,0.0001782,2]
[381770712,1756339852780,-400.0,0.0001782,2]
[381770713,1756339852789,-750.35,0.0001782,2]
[381770714,1756339852798,-400.0,0.0001782,2]
[381770715,1756339852808,-400.0,0.0001782,2]
[381770716,1756339852817,-400.0,0.0001782,2]
[381770717,1756339852826,-400.0,0.0001782,2]
[381770718,1756339852835,-679.22,0.0001782,2]
[381770719,1756339852844,-409.72,0.0001782,2]
[381770720,1756339852853,-400.0,0.0001782,2]
[381770721,1756339852865,-400.0,0.0001782,2]
[381770722,1756339852874,-400.0,0.0001782,2]
[381770723,1756339852884,-400.0,0.0001782,2]
[381770724,1756339852893,-472.38,0.0001782,2]
[381770725,1756339852903,-400.0,0.0001782,2]
[381770726,1756339852912,-400.0,0.0001782,2]
[381770727,1756339852921,-400.0,0.0001782,2]
[381770728,1756339852930,-400.0,0.0001782,2]
[381770729,1756339852941,-260.76754465,0.0001782,2]
[381770730,1756339852950,-499.79,0.0001782,2]
[381770731,1756339852959,-629.71,0.0001782,2]
[381770732,1756339852968,-400.0,0.0001782,2]
[381770733,1756339852980,-544.62,0.0001782,2]
[381770734,1756339852990,-468.92,0.0001782,2]
[381770735,1756339853000,-400.0,0.0001782,2]
[381770736,1756339853009,-400.0,0.0001782,2]
[381770737,1756339853019,-400.0,0.0001782,2]
[381770738,1756339853029,-400.0,0.0001782,2]
[381770739,1756339853039,-400.0,0.0001782,2]
[381770740,1756339853048,-400.0,0.0001782,2]
[381770741,1756339853057,-626.04,0.0001782,2]
[381770742,1756339853067,-400.0,0.0001782,2]
[381770743,1756339853076,-400.0,0.0001782,2]
[381770744,1756339853087,-400.0,0.0001782,2]
[381770745,1756339853096,-467.28,0.0001782,2]
[381770746,1756339853106,-400.0,0.0001782,2]
[381770747,1756339853116,-400.0,0.0001782,2]
[381770748,1756339853127,-400.0,0.0001782,2]
[381770749,1756339853136,-400.0,0.0001782,2]
[381770750,1756339853145,-400.0,0.0001782,2]
[381770751,1756339853154,-400.0,0.0001782,2]
[381770752,1756339853165,-400.0,0.0001782,2]
[381770753,1756339853174,-509.74802843,0.0001782,2]
[381770754,1756339853185,-950.87196913,0.00017821,2]
[381770755,1756339853195,-1632.86,0.00017821,2]
[381770756,1756339853205,-9889.18,0.00017821,2]
[381770757,1756339853215,-151.0,0.00017821,2]
[381770758,1756339853481,-3824.55,0.00017821,2]
[381770759,1756339853504,-151.0,0.00017821,2]
[381770760,1756339853513,-151.0,0.00017821,2]
[381770761,1756339853523,-151.0,0.00017821,2]
[381770762,1756339853533,-400.0,0.00017821,2]
[381770763,1756339853542,-400.0,0.00017821,2]
[381770764,1756339853552,-652.56,0.00017821,2]
[381770765,1756339853561,-400.0,0.00017821,2]
[381770766,1756339853571,-2302.99,0.00017821,2]
[381770767,1756339853580,-400.0,0.00017821,2]
[381770768,1756339853589,-151.0,0.00017821,2]
[381770769,1756339853598,-400.0,0.00017821,2]
[381770770,1756339853608,-151.0,0.00017821,2]
[381770771,1756339853618,-151.0,0.00017821,2]
[381770772,1756339853627,-151.0,0.00017821,2]
[381770773,1756339853637,-671.4,0.00017821,2]
[381770774,1756339853646,-400.0,0.00017821,2]
[381770775,1756339853656,-151.0,0.00017821,2]
[381770776,1756339853665,-400.0,0.00017821,2]
[381770777,1756339853675,-151.0,0.00017821,2]
[381770778,1756339853684,-400.52,0.00017821,2]
[381770779,1756339853694,-542.81,0.00017821,2]
[381770780,1756339853703,-151.0,0.00017821,2]
[381770781,1756339853713,-400.0,0.00017821,2]
[381770782,1756339853723,-443.89,0.00017821,2]
[381770783,1756339853733,-400.0,0.00017821,2]
[381770784,1756339853742,-444.17,0.00017821,2]
[381770785,1756339853752,-400.0,0.00017821,2]
[381770786,1756339853761,-400.0,0.00017821,2]
[381770787,1756339853770,-400.0,0.00017821,2]
[381770788,1756339853779,-400.0,0.00017821,2]
[381770789,1756339853789,-533.0,0.00017821,2]
[381770790,1756339853798,-474.76,0.00017821,2]
[381770791,1756339853807,-400.0,0.00017821,2]
[381770792,1756339853816,-2329.11,0.00017821,2]
[381770793,1756339853825,-400.0,0.00017821,2]
[381770794,1756339853834,-550.95,0.00017821,2]
[381770795,1756339853843,-400.0,0.00017821,2]
[381770796,1756339853853,-406.72,0.00017821,2]
[381770797,1756339853865,-400.0,0.00017821,2]
[381770798,1756339853874,-400.0,0.00017821,2]
[381770799,1756339853883,-300.0,0.0001783,2]
[381770800,1756339853892,-300.0,0.0001783,2]
[381770801,1756339853902,-300.0,0.0001783,2]
[381770802,1756339853911,-500.0,0.0001783,2]
[381770803,1756339853920,-500.0,0.0001783,2]
[381770804,1756339853929,-540.61,0.0001783,2]
[381770805,1756339853940,-4093.0,0.00017831,2]
[381770806,1756339853949,-150.0,0.00017831,2]
[381770807,1756339853959,-166.73760998,0.00017831,2]
[381770808,1756339853968,-200.0,0.00017831,2]
[381770809,1756339853978,-200.0,0.00017831,2]
[381770810,1756339853987,-200.0,0.00017831,2]
[381770811,1756339853997,-150.0,0.00017831,2]
[381770812,1756339854006,-500.0,0.00017831,2]
[381770813,1756339854020,-150.0,0.00017831,2]
[381770814,1756339854029,-500.0,0.00017831,2]
[381770815,1756339854039,-900.0,0.00017831,2]
[381770816,1756339854049,-150.0,0.00017831,2]
[381770817,1756339854058,-150.0,0.00017831,2]
[381770818,1756339854067,-500.0,0.00017831,2]
[381770819,1756339854077,-500.0,0.00017831,2]
[381770820,1756339854086,-200.0,0.00017831,2]
[381770821,1756339854096,-314808.85429832,0.00017831,2]
[381770822,1756339854105,-150.0,0.00017831,2]
[381770823,1756339854115,-506.5933107,0.00017831,2]
[381770824,1756339854124,-150.0,0.00017831,2]
[381770825,1756339854134,-1299.5276591,0.00017831,2]
[381770826,1756339854145,-150.0,0.00017831,2]
[381770827,1756339854154,-1965.70895619,0.00017831,2]
[381770828,1756339854163,-150.0,0.00017831,2]
[381770829,1756339854173,-1582.7946299,0.00017831,2]
[381770830,1756339854182,-151.0,0.00017831,2]
[381770831,1756339854192,-151.0,0.00017831,2]
[381770832,1756339854201,-151.0,0.00017831,2]
[381770833,1756339854211,-151.0,0.00017831,2]
[381770834,1756339854220,-151.0,0.00017831,2]
[381770835,1756339854229,-151.0,0.00017831,2]
[381770836,1756339854240,-151.0,0.00017831,2]
[381770837,1756339854250,-151.0,0.00017831,2]
[381770838,1756339854259,-151.0,0.00017831,2]
[381770839,1756339854269,-151.0,0.00017831,2]
[381770840,1756339854279,-177.467903,0.00017831,2]
[381770841,1756339854290,-151.0,0.00017831,2]
[381770842,1756339854300,-151.0,0.00017831,2]
[381770843,1756339854310,-151.0,0.00017831,2]
[381770844,1756339854319,-151.0,0.00017831,2]
[381770845,1756339854329,-151.0,0.00017831,2]
[381770846,1756339854339,-151.0,0.00017831,2]
[381770847,1756339854349,-265.60116,0.00017831,2]
[381770848,1756339854359,-151.0,0.00017831,2]
[381770849,1756339854368,-151.0,0.00017831,2]
[381770850,1756339854378,-151.0,0.00017831,2]
[381770851,1756339854388,-151.0,0.00017831,2]
[381770852,1756339854397,-151.0,0.00017831,2]
[381770853,1756339854406,-151.0,0.00017831,2]
[381770854,1756339854415,-151.0,0.00017831,2]
[381770855,1756339854425,-151.0,0.00017831,2]
[381770856,1756339854434,-151.0,0.00017831,2]
[381770857,1756339854443,-151.0,0.00017831,2]
[381770858,1756339854453,-151.0,0.00017831,2]
[381770859,1756339854462,-151.0,0.00017831,2]
[381770860,1756339854471,-151.0,0.00017831,2]
[381770861,1756339854481,-151.0,0.00017831,2]
[381770862,1756339854491,-151.0,0.00017831,2]
[381770863,1756339854502,-151.0,0.00017831,2]
[381770864,1756339854511,-151.0,0.00017831,2]
[381770865,1756339854522,-151.0,0.00017831,2]
[381770866,1756339854531,-151.0,0.00017831,2]
[381770867,1756339854541,-183.399767,0.00017831,2]
[381770868,1756339854550,-151.0,0.00017831,2]
[381770869,1756339854560,-183.399767,0.00017831,2]
[381770870,1756339854571,-183.399767,0.00017831,2]
[381770871,1756339854581,-183.399767,0.00017831,2]
[381770872,1756339854591,-152.069911,0.00017831,2]
[381770873,1756339854600,-151.0,0.00017831,2]
[381770874,1756339854610,-151.388523,0.00017831,2]
[381770875,1756339854620,-151.0,0.00017831,2]
[381770876,1756339854632,-151.0,0.00017831,2]
[381770877,1756339854643,-151.0,0.00017831,2]
[381770878,1756339854653,-272.807373,0.00017831,2]
[381770879,1756339854663,-151.0,0.00017831,2]
[381770880,1756339854672,-151.0,0.00017831,2]
[381770881,1756339854685,-151.0,0.00017831,2]
[381770882,1756339854697,-151.0,0.00017831,2]
[381770883,1756339854707,-151.0,0.00017831,2]
[381770884,1756339854717,-151.0,0.00017831,2]
[381770885,1756339854728,-151.0,0.00017831,2]
[381770886,1756339854737,-251.255104,0.00017831,2]
[381770887,1756339854747,-151.0,0.00017831,2]
[381770888,1756339854758,-151.0,0.00017831,2]
[381770889,1756339854769,-151.0,0.00017831,2]
[381770890,1756339854778,-259.493447,0.00017831,2]
[381770891,1756339854788,-151.0,0.00017831,2]
[381770892,1756339854799,-151.0,0.00017831,2]
[381770893,1756339854808,-151.0,0.00017831,2]
[381770894,1756339854818,-151.0,0.00017831,2]
[381770895,1756339854828,-151.0,0.00017831,2]
[381770896,1756339854839,-151.0,0.00017831,2]
[381770897,1756339854848,-151.0,0.00017831,2]
[381770898,1756339854859,-151.0,0.00017831,2]
[381770899,1756339854872,-151.0,0.00017831,2]
[381770900,1756339854882,-151.0,0.00017831,2]
[381770901,1756339854892,-151.0,0.00017831,2]
[381770902,1756339854902,-151.0,0.00017831,2]
[381770903,1756339854912,-151.0,0.00017831,2]
[381770904,1756339854921,-239.88706,0.00017831,2]
[381770905,1756339854931,-151.0,0.00017831,2]
[381770906,1756339854945,-151.0,0.00017831,2]
[381770907,1756339854956,-151.0,0.00017831,2]
[381770908,1756339854966,-151.0,0.00017831,2]
[381770909,1756339854977,-151.0,0.00017831,2]
[381770910,1756339854986,-151.0,0.00017831,2]
[381770911,1756339854995,-151.0,0.00017831,2]
[381770912,1756339855004,-151.0,0.00017831,2]
[381770913,1756339855016,-151.0,0.00017831,2]
[381770914,1756339855025,-151.0,0.00017831,2]
[381770915,1756339855034,-151.0,0.00017831,2]
[381770916,1756339855044,-344.548096,0.00017831,2]
[381770917,1756339855055,-344.548096,0.00017831,2]
[381770918,1756339855065,-194.108033,0.00017831,2]
[381770919,1756339855075,-344.548096,0.00017831,2]
[381770920,1756339855085,-151.0,0.00017831,2]
[381770921,1756339855095,-344.548096,0.00017831,2]
[381770922,1756339855105,-299.25245,0.00017831,2]
[381770923,1756339855115,-151.0,0.00017831,2]
[381770924,1756339855125,-299.25245,0.00017831,2]
[381770925,1756339855134,-299.25245,0.00017831,2]
[381770926,1756339855144,-299.25245,0.00017831,2]
[381770927,1756339855154,-151.0,0.00017831,2]
[381770928,1756339855163,-151.0,0.00017831,2]
[381770929,1756339855172,-151.0,0.00017831,2]
[381770930,1756339855182,-151.0,0.00017831,2]
[381770931,1756339855191,-151.0,0.00017831,2]
[381770932,1756339855201,-286.352206,0.00017831,2]
[381770933,1756339855211,-151.0,0.00017831,2]
[381770934,1756339855220,-151.0,0.00017831,2]
[381770935,1756339855230,-286.352206,0.00017831,2]
[381770936,1756339855239,-151.0,0.00017831,2]
[381770937,1756339855249,-151.0,0.00017831,2]
[381770938,1756339855258,-286.352206,0.00017831,2]
[381770939,1756339855267,-286.352206,0.00017831,2]
[381770940,1756339855278,-151.0,0.00017831,2]
[381770941,1756339855287,-151.0,0.00017831,2]
[381770942,1756339855297,-151.0,0.00017831,2]
[381770943,1756339855306,-151.0,0.00017831,2]
[381770944,1756339855316,-151.0,0.00017831,2]
[381770945,1756339855326,-151.0,0.00017831,2]
[381770946,1756339855336,-151.0,0.00017831,2]
[381770947,1756339855345,-151.0,0.00017831,2]
[381770948,1756339855355,-151.0,0.00017831,2]
[381770949,1756339855365,-167.097759,0.00017831,2]
[381770950,1756339855376,-151.0,0.00017831,2]
[381770951,1756339855385,-151.0,0.00017831,2]
[381770952,1756339855395,-151.0,0.00017831,2]
[381770953,1756339855404,-151.0,0.00017831,2]
[381770954,1756339855414,-164.477,0.00017831,2]
[381770955,1756339855425,-151.0,0.00017831,2]
[381770956,1756339855435,-151.0,0.00017831,2]
[381770957,1756339855444,-1568.202127,0.00017831,2]
[381770958,1756339855454,-249.23100797,0.00017831,2]
[381770959,1756339855463,-1568.202127,0.00017831,2]
[381770960,1756339855473,-151.0,0.00017831,2]
[381770961,1756339855483,-1568.202127,0.00017831,2]
[381770962,1756339855492,-1568.202127,0.00017831,2]
[381770963,1756339855502,-151.0,0.00017831,2]
[381770964,1756339855513,-151.0,0.00017831,2]
[381770965,1756339855524,-173.941752,0.00017831,2]
[381770966,1756339855533,-173.941752,0.00017831,2]
[381770967,1756339855543,-173.941752,0.00017831,2]
[381770968,1756339855553,-173.941752,0.00017831,2]
[381770969,1756339855562,-151.0,0.00017831,2]
[381770970,1756339855572,-151.0,0.00017831,2]
[381770971,1756339855581,-151.0,0.00017831,2]
[381770972,1756339855591,-151.0,0.00017831,2]
[381770973,1756339855600,-151.0,0.00017831,2]
[381770974,1756339855610,-151.0,0.00017831,2]
[381770975,1756339855620,-151.0,0.00017831,2]
[381770976,1756339855629,-151.0,0.00017831,2]
[381770977,1756339855639,-151.0,0.00017831,2]
[381770978,1756339855648,-151.0,0.00017831,2]
[381770979,1756339855658,-151.0,0.00017831,2]
[381770980,1756339855668,-151.0,0.00017831,2]
[381770981,1756339855678,-151.0,0.00017831,2]
[381770982,1756339855687,-151.0,0.00017831,2]
[381770983,1756339855696,-151.0,0.00017831,2]
[381770984,1756339855706,-164.967584,0.00017831,2]
[381770985,1756339855716,-151.0,0.00017831,2]
[381770986,1756339855727,-151.0,0.00017831,2]
[381770987,1756339855737,-151.0,0.00017831,2]
[381770988,1756339855746,-151.0,0.00017831,2]
[381770989,1756339855756,-158.865397,0.00017831,2]
[381770990,1756339855766,-158.865397,0.00017831,2]
[381770991,1756339855777,-158.865397,0.00017831,2]
[381770992,1756339855786,-151.0,0.00017831,2]
[381770993,1756339855796,-158.865397,0.00017831,2]
[381770994,1756339855806,-151.0,0.00017831,2]
[381770995,1756339855815,-151.0,0.00017831,2]
[381770996,1756339855825,-151.0,0.00017831,2]
[381770997,1756339855834,-151.0,0.00017831,2]
[381770998,1756339855844,-200.769895,0.00017831,2]
[381770999,1756339855854,-151.0,0.00017831,2]
[381771000,1756339855866,-151.0,0.00017831,2]
[381771001,1756339855941,-151.0,0.00017831,2]
[381771002,1756339855952,-151.0,0.00017831,2]
[381771003,1756339855961,-151.0,0.00017831,2]
[381771004,1756339855971,-237.780928,0.00017831,2]
[381771005,1756339855980,-151.0,0.00017831,2]
[381771006,1756339855990,-151.0,0.00017831,2]
[381771007,1756339856000,-151.0,0.00017831,2]
[381771008,1756339856009,-151.0,0.00017831,2]
[381771009,1756339856019,-3491.8520154,0.00017849,2]
[381771010,1756339856030,-8566.00464866,0.0001786,2]
[381771011,1756339856039,-541.32454766,0.00017873,2]
[381771012,1756339856048,-500.0,0.00017873,2]
[381771013,1756339856057,-326.60654934,0.00017873,2]
[381771014,1756339856066,-252.6525107,0.00017873,2]
[381771015,1756339856075,-500.0,0.00017873,2]
[381771016,1756339856084,-323.90237999,0.00017873,2]
[381771017,1756339856093,-500.4916242,0.00017873,2]
[381771018,1756339856103,-500.0,0.00017873,2]
[381771019,1756339856112,-500.0,0.00017873,2]
[381771020,1756339856121,-500.0,0.00017873,2]
[381771021,1756339856130,-500.0,0.00017873,2]
[381771022,1756339856139,-500.0,0.00017873,2]
[381771023,1756339856148,-500.0,0.00017873,2]
[381771024,1756339856157,-500.0,0.00017873,2]
[381771025,1756339856167,-500.0,0.00017873,2]
[381771026,1756339856176,-500.0,0.00017873,2]
[381771027,1756339856186,-500.0,0.00017873,2]
[381771028,1756339856195,-500.0,0.00017873,2]
[381771029,1756339856204,-500.0,0.00017873,2]
[381771030,1756339856212,-500.0,0.00017873,2]
[381771031,1756339856221,-500.0,0.00017873,2]
[381771032,1756339856231,-500.0,0.00017873,2]
[381771033,1756339856240,-500.62831977,0.00017873,2]
[381771034,1756339856249,-300.0,0.00017881,2]
[381771035,1756339856258,-2352.0074,0.00017899,2]
[381771036,1756339856267,-1000.0,0.000179,2]
[381771037,1756339856278,-1000.0,0.000179,2]
[381771038,1756339856288,-1000.0,0.000179,2]
[381771039,1756339856298,-1000.0,0.000179,2]
[381771040,1756339856307,-1000.0,0.000179,3]
[381771041,1756339856317,-1000.0,0.000179,3]
[381771042,1756339856326,-1000.0,0.000179,3]
[381771043,1756339856335,-6900.0,0.000179,6]
[381771044,1756339856344,-157.66851916,0.000179,3]
[381771045,1756339856353,-453.96779658,0.000179,2]
[381771046,1756339856362,-8007.41930826,0.000179,2]
[381771047,1756339856372,-3211.4270052,0.000179,2]
[381771048,1756339856381,-3491.8520154,0.000179,2]
[381771049,1756339856391,-183.05264219,0.000179,2]
[381771050,1756339856400,-500.0,0.000179,2]
[381771051,1756339856409,-389.16660964,0.000179,2]
[381771052,1756339856418,-526.0,0.00017901,2]
[381771053,1756339856427,-157.15315854,0.00017904,2]
[381771054,1756339856436,-1452.67676667,0.00017909,2]
[381771055,1756339856445,-8566.00464866,0.00017919,2]
[381771056,1756339856455,-215.0,0.0001792,2]
[381771057,1756339856464,-1680.0,0.00017926,2]
[381771058,1756339856473,-469.39,0.0001794,2]
[381771059,1756339856482,-469.39,0.0001794,2]
[381771060,1756339856493,-469.39,0.0001794,2]
[381771061,1756339856503,-799.74,0.0001794,2]
[381771062,1756339856513,-799.74,0.0001794,2]
[381771063,1756339856524,-799.74,0.0001794,2]
[381771064,1756339856533,-501.64,0.0001794,2]
[381771065,1756339856543,-317.08,0.0001794,2]
[381771066,1756339856553,-168.0,0.00017965,2]
[381771067,1756339856564,-150.0,0.00017965,2]
[381771068,1756339856574,-820.68761997,0.00017966,2]
[381771069,1756339856584,-1045.97441761,0.00017967,2]
[381771070,1756339856594,-1271.26121524,0.00017968,2]
[381771071,1756339856604,-1496.54801288,0.00017969,2]
[381771072,1756339856613,-1721.83481052,0.00017969,2]
[381771073,1756339856623,-1947.12160816,0.0001797,2]
[381771074,1756339856634,-2172.4084058,0.00017971,2]
[381771075,1756339856644,-2397.69520343,0.00017972,2]
[381771076,1756339856654,-284.0,0.00017973,2]
[381771077,1756339856664,-301.0,0.00017973,2]
[381771078,1756339856675,-694.0,0.00017973,2]
[381771079,1756339856685,-500.0,0.00017973,2]
[381771080,1756339856698,-500.0,0.00017973,2]
[381771081,1756339856707,-2622.98200107,0.00017973,2]
[381771082,1756339856716,-400.0,0.00017973,2]
[381771083,1756339856727,-801.14,0.00017973,2]
[381771084,1756339856737,-8566.00464866,0.00017978,2]
[381771085,1756339856746,-525.64360012,0.00017981,2]
[381771086,1756339856757,-500.0,0.00017986,2]
[381771087,1756339856767,-300.0,0.00017986,2]
[381771088,1756339856777,-500.0,0.00017986,2]
[381771089,1756339856786,-300.0,0.00017986,2]
[381771090,1756339856795,-540.61,0.00017986,2]
[381771091,1756339856807,-150.0,0.00017986,2]
[381771092,1756339856817,-300.0,0.00017986,2]
[381771093,1756339856829,-184938.77697191,0.00017987,2]
[381771094,1756339856839,-151.0,0.00017987,2]
[381771095,1756339856847,-151.0,0.00017987,2]
[381771096,1756339856858,-151.0,0.00017987,2]
[381771097,1756339856869,-151.0,0.00017987,2]
[381771098,1756339856878,-151.0,0.00017987,2]
[381771099,1756339856887,-151.0,0.00017987,2]
[381771100,1756339856897,-151.0,0.00017987,2]
[381771101,1756339856907,-151.0,0.00017987,2]
[381771102,1756339856918,-151.0,0.00017987,2]
[381771103,1756339856934,-151.0,0.00017987,2]
[381771104,1756339856943,-151.0,0.00017987,2]
[381771105,1756339856954,-151.0,0.00017987,2]
[381771106,1756339856963,-151.0,0.00017987,2]
[381771107,1756339856972,-151.0,0.00017987,2]
[381771108,1756339856981,-151.0,0.00017987,2]
[381771109,1756339856990,-165.315831,0.00017987,2]
[381771110,1756339857002,-151.0,0.00017987,2]
[381771111,1756339857012,-151.0,0.00017987,2]
[381771112,1756339857021,-151.0,0.00017987,2]
[381771113,1756339857031,-151.0,0.00017987,2]
[381771114,1756339857039,-151.0,0.00017987,2]
[381771115,1756339857048,-151.0,0.00017987,2]
[381771116,1756339857058,-151.0,0.00017987,2]
[381771117,1756339857068,-151.0,0.00017987,2]
[381771118,1756339857078,-183.399767,0.00017987,2]
[381771119,1756339857089,-151.0,0.00017987,2]
[381771120,1756339857100,-183.399767,0.00017987,2]
[381771121,1756339857108,-183.399767,0.00017987,2]
[381771122,1756339857118,-183.399767,0.00017987,2]
[381771123,1756339857127,-151.0,0.00017987,2]
[381771124,1756339857137,-151.0,0.00017987,2]
[381771125,1756339857146,-190.298434,0.00017987,2]
[381771126,1756339857155,-174.410368,0.00017987,2]
[381771127,1756339857165,-151.0,0.00017987,2]
[381771128,1756339857175,-151.0,0.00017987,2]
[381771129,1756339857184,-151.0,0.00017987,2]
[381771130,1756339857192,-151.0,0.00017987,2]
[381771131,1756339857201,-151.0,0.00017987,2]
[381771132,1756339857211,-215.400955,0.00017987,2]
[381771133,1756339857220,-151.0,0.00017987,2]
[381771134,1756339857229,-151.0,0.00017987,2]